Workbook

Sheet Cover
A3: Navigator
C5: =Client_Name -> SumProduct Pty Limited
C6: =Model_Name -> Working Capital Adjustment.xlsm
C14: Primary Developer: Liam Bastick
C15: Revisions: Hanh Tran
C17: General Cover Notes:
C18: Example to develop a dashboard.
C22: Any queries, please e-mail: | G22: liam.bastick@sumproduct.com
C23: Website: | G23: www.sumproduct.com

Sheet Navigator
A1: Navigator
A2: =Model_Name -> Working Capital Adjustment.xlsm
A3: Navigator
E4: Error Checks: | G4: =Overall_Error_Check -> 0
B7: 1 | C7: Table of Contents
F9: Cover
F10: Style Guide
F11: Model Parameters
F12: Working Capital>>
F13: Simple Example
F14: Monthly Calculations
F15: Second Monthly Example
F16: Error Checks

Sheet Style Guide
A1: =IF(ISERROR(RIGHT(CELL("filename",A1),LEN(CELL("filename",A1))-FIND("]",CELL("filename",A1)))), "", RIGHT(CELL("filename",A1),LEN(CELL("filename",A1))-FIND("]",CELL("filename",A1)))) -> Style Guide
A2: =Model_Name -> Working Capital Adjustment.xlsm
A3: Navigator
E4: Error Checks: | I4: =Overall_Error_Check -> 0
B6: =MAX($B$5:$B5)+1 -> 1 | C6: Formatting of Headers / Dividers
C8: Description | I8: Display | K8: Style Name
C10: Sheet Title | I10: =C10 -> Sheet Title | K10: Sheet Title
C11: Model Name | I11: =C11 -> Model Name | K11: Model Name
C13: Header 1 | I13: =C13 -> Header 1 | K13: Header 1
C14: Header 2 | I14: =C14 -> Header 2 | K14: Header 2
C15: Header 3 | I15: =C15 -> Header 3 | K15: Header 3
C16: Header 4 | I16: =C16 -> Header 4 | K16: Header 4
C18: Notes | I18: =C18 -> Notes | K18: Notes
C20: Table Heading | I20: =C20 -> Table Heading | K20: Table Heading
B23: =MAX($B$5:$B22)+1 -> 2 | C23: Individual Cell Styles
C25: Description | I25: Display | K25: Style Name
C27: Assumption | I27: Assumption | K27: =C27 -> Assumption
C29: Constraint | I29: =C29 -> Constraint | K29: =C29 -> Constraint
C31: Empty | K31: =C31 -> Empty
C33: Error Check | I33: 0 | K33: =C33 -> Error Check
C35: Hyperlink | I35: Hyperlink | K35: =C35 -> Hyperlink
C37: Internal Reference | I37: ='Error Checks'!E12 -> Example | K37: =C37 -> Internal Reference
C39: Line Calculation | I39: 77 | K39: Line Calc
C41: Line Total | I41: =I39 -> 77 | K41: =C41 -> Line Total
C43: Parameter | I43: 365 | K43: =C43 -> Parameter
C45: Range Name Description | I45: Not_Named | K45: =C45 -> Range Name Description
C47: Row Reference | I47: =ROW(C47) -> 47 | K47: Row Ref
C49: Row Summary | I49: =I41 -> 77 | K49: =C49 -> Row Summary
C51: Units | I51: A$ | K51: =C51 -> Units
C53: WIP | K53: =C53 -> WIP
B56: =MAX($B$5:$B55)+1 -> 3 | C56: Numerical Styles
C58: Description | I58: Display | K58: Style Name
C60: Comma | I60: 123456.789 | K60: =C60 -> Comma
C62: Comma [0] | I62: -123456.789 | K62: Comma [0]
C64: Currency | I64: 123456.789 | K64: Currency
C66: Currency [0] | I66: 123456.789 | K66: Currency [0]
C68: Date | I68: =TODAY() -> 2020-12-17 | K68: =C68 -> Date
C70: Date Heading | I70: =TODAY() -> 2020-12-17 | K70: =C70 -> Date Heading
C72: Numbers 0 | I72: -123456.789 | K72: =C72 -> Numbers 0
C74: Percent | I74: 0.5 | K74: =C74 -> Percent

Sheet Model Parameters
A1: =IF(ISERROR(RIGHT(CELL("filename",A1),LEN(CELL("filename",A1))-FIND("]",CELL("filename",A1)))), "", RIGHT(CELL("filename",A1),LEN(CELL("filename",A1))-FIND("]",CELL("filename",A1)))) -> Model Parameters
A2: =Model_Name -> Working Capital Adjustment.xlsm
A3: Navigator
E4: Error Checks: | I4: =Overall_Error_Check -> 0
B6: =MAX($B$5:$B5)+1 -> 1 | C6: General
C8: Key Inputs
E10: General
E11: Model Name | G11: =IF(ISERROR(OR(FIND("[",CELL("filename",A1)),FIND("]",CELL("filename",A1)))),"",MID(CELL("filename",A1),FIND("[",CELL("filename",A1))+1,FIND("]",CELL("filename",A1))-FIND("[",CELL("filename",A1))-1)) -> Working Capital Adjustment.xlsm
E12: Client Name | G12: SumProduct Pty Limited
B15: =MAX($B$5:$B14)+1 -> 2 | C15: General Range Names
C17: Technical Assumptions
E19: Days in Year | G19: 365
E20: Months in Month | G20: 1
E21: Months in Quarter | G21: 3
E22: Months in Half Yr | G22: 6
E23: Months in Year | G23: 12
E24: Quarters in Year | G24: 4
E26: Rounding Accuracy | G26: 5
E28: Very Large Number | G28: 1e+99
E29: Very Small Number | G29: 1e-08
E31: Thousand | G31: 1000

Sheet Working Capital>>
A3: Navigator

Sheet Simple Example
A1: =IF(ISERROR(RIGHT(CELL("filename",A1),LEN(CELL("filename",A1))-FIND("]",CELL("filename",A1)))), "", RIGHT(CELL("filename",A1),LEN(CELL("filename",A1))-FIND("]",CELL("filename",A1)))) -> Simple Example
A2: =Model_Name -> Working Capital Adjustment.xlsm
A3: Navigator
E4: Error Checks: | I4: 0
C7: Simple Example
E9: This assumes that the number of days in the period exceeds the
D11: Assumptions
E13: Type of Example | H13: Debtor
E15: ="Days "&IF($H$13="Creditor","Payable","Receivable") -> Days Receivable | H15: 128
E17: =IF($H$13="Creditor","Costs","Sales")&" in Period" -> Sales in Period | H17: 1000
E19: Days in Year | H19: =Days_in_Year -> 365
D23: Control Account
E25: ="Opening "&PROPER($H$13)&"s" -> Opening Debtors | H25: 0 | J25: Prior BS
E26: =E17 -> Sales in Period | H26: =H17 -> 1000 | J26: IS
E27: ="Cash "&IF($H$13="Creditor","Payments","Receipts") -> Cash Receipts | H27: =H28-SUM(H25:H26) -> -649.3150685 | I27: =-H27 -> 649.3150685 | J27: CFS
E28: ="Closing "&PROPER($H$13)&"s" -> Closing Debtors | H28: =IF(Days_in_Year,$H$15/Days_in_Year*H26) -> 350.6849315 | J28: Current BS
D31: Chart Data
H33: =Days_in_Year -> 365 | I33: 0.1 | K33: 0
E34: =E26 -> Sales in Period | H34: =Days_in_Year -> 365
H35: =Days_in_Year -> 365 | I35: 0.1 | K35: 0
E36: =E27 -> Cash Receipts | H36: =IF(H26,H28/H26*Days_in_Year,) -> 128 | I36: =Days_in_Year-H36 -> 237 | K36: =H36 -> 128
H37: =Days_in_Year -> 365 | I37: 0.1 | K37: 0
H39: 0 | I39: 3
H40: =H36 -> 128 | I40: 2
H42: =Days_in_Year/4 -> 91.25 | I42: 3
H43: =H40+H42 -> 219.25 | I43: 2
H45: =Days_in_Year/2 -> 182.5 | I45: 3
H46: =H45+H40 -> 310.5 | I46: 2
H48: =H42+H45 -> 273.75 | I48: 3
H49: =H48+H40 -> 401.75 | I49: 2
H51: =Days_in_Year -> 365 | I51: 3
H52: =H51+H40 -> 493 | I52: 2

Sheet Monthly Calculations
A1: =IF(ISERROR(RIGHT(CELL("filename",A1),LEN(CELL("filename",A1))-FIND("]",CELL("filename",A1)))), "", RIGHT(CELL("filename",A1),LEN(CELL("filename",A1))-FIND("]",CELL("filename",A1)))) -> Monthly Calculations
A2: =Model_Name -> Working Capital Adjustment.xlsm
A3: Navigator
E4: Error Checks: | I4: 0
C7: Monthly Calculations Example
D9: Assumptions
E11: Days in an Average Month
F13: Required for calculations | I13: 30 | J13: days
E16: Days Receivable
K17: Complete Mths | L17: Partial Mth
F18: ='Simple Example'!E15 -> Days Receivable | H18: 75 | K18: =IF(Average_Days_in_Month,INT(H18/Average_Days_in_Month),) -> 2 | L18: =IF(Average_Days_in_Month,MOD(H18,Average_Days_in_Month)/Average_Days_in_Month,) -> 0.5
D21: Calculations
F23: Month Number | K23: =N(J23)+1 -> 1 | L23: =N(K23)+1 -> 2 | M23: 3 | N23: 4 | O23: 5 | P23: 6 | Q23: 7 | R23: 8 | S23: 9 | T23: 10 | U23: =N(T23)+1 -> 11 | V23: 12
F25: ='Simple Example'!E25 -> Opening Debtors | K25: =IF(K$23=1,,J28) -> 0 | L25: =IF(L$23=1,,K28) -> 100 | M25: 300 | N25: 550 | O25: 800 | P25: 1050 | Q25: 1300 | R25: 1550 | S25: 1800 | T25: 2050 | U25: 2300 | V25: 2550 | X25: ='Simple Example'!J25 -> Prior BS
F26: ='Simple Example'!E26 -> Sales in Period | K26: 100 | L26: 200 | M26: 300 | N26: 400 | O26: 500 | P26: 600 | Q26: 700 | R26: 800 | S26: 900 | T26: 1000 | U26: 1100 | V26: 1200 | X26: ='Simple Example'!J26 -> IS
F27: ='Simple Example'!E27 -> Cash Receipts | K27: =K28-SUM(K25:K26) -> 0 | L27: =L28-SUM(L25:L26) -> 0 | M27: -50 | N27: -150 | O27: -250 | P27: -350 | Q27: -450 | R27: -550 | S27: -650 | T27: -750 | U27: -850 | V27: -950 | X27: ='Simple Example'!J27 -> CFS
F28: ='Simple Example'!E28 -> Closing Debtors | K28: =IF($K$18,SUM(OFFSET(K26,,,1,-MIN($K$18,K$23))),)+IF(K$23-$K$18<=0,,OFFSET(K26,,-$K$18)*$L$18) -> 100 | L28: =IF($K$18,SUM(OFFSET(L26,,,1,-MIN($K$18,L$23))),)+IF(L$23-$K$18<=0,,OFFSET(L26,,-$K$18)*$L$18) -> 300 | M28: 550 | N28: 800 | O28: 1050 | P28: 1300 | Q28: 1550 | R28: 1800 | S28: 2050 | T28: 2300 | U28: 2550 | V28: 2800 | X28: ='Simple Example'!J28 -> Current BS

Sheet Second Monthly Example
A1: =IF(ISERROR(RIGHT(CELL("filename",A1),LEN(CELL("filename",A1))-FIND("]",CELL("filename",A1)))), "", RIGHT(CELL("filename",A1),LEN(CELL("filename",A1))-FIND("]",CELL("filename",A1)))) -> Second Monthly Example
A2: =Model_Name -> Working Capital Adjustment.xlsm
A3: Navigator
E4: Error Checks: | I4: 0
C7: More Sophisticated Montly Calculations
D9: Assumptions
F11: Month Number | K11: =N(J11)+1 -> 1 | L11: =N(K11)+1 -> 2 | M11: 3 | N11: 4 | O11: 5 | P11: 6 | Q11: 7 | R11: 8 | S11: 9 | T11: 10 | U11: 11 | V11: 12
F13: Forecast Sales Revenue | K13: 100 | L13: 200 | M13: 300 | N13: 400 | O13: 500 | P13: 600 | Q13: 700 | R13: 800 | S13: 900 | T13: 1000 | U13: 1100 | V13: 1200
F15: Cash Receipt Profile | K15: 0.4 | L15: 0.25 | M15: 0.15 | N15: 0.1 | O15: 0.05
F17: Bad Debt | H17: =MAX(1-SUM(K15:V15),) -> 0.05
F18: Month Written Off | H18: 6
F20: Amount Written Off | K20: =IF(K$11-$H$18<0,,OFFSET(K$13,,1-$H$18))*$H$17 -> 0 | L20: =IF(L$11-$H$18<0,,OFFSET(L$13,,1-$H$18))*$H$17 -> 0 | M20: 0 | N20: 0 | O20: 0 | P20: 5 | Q20: 10 | R20: 15 | S20: 20 | T20: 25 | U20: 30 | V20: 35
D23: Calculations
E25: Simple Grid Method
F27: =F11 -> Month Number | K27: =K11 -> 1 | L27: 2 | M27: 3 | N27: 4 | O27: 5 | P27: 6 | Q27: 7 | R27: 8 | S27: 9 | T27: 10 | U27: 11 | V27: 12
G29: =N(G28)+1 -> 1 | H29: =OFFSET($J$13,,$G29) -> 100 | K29: =IF(K$27-$G29>=0,OFFSET(K$15,,1-$G29),)*$H29 -> 40 | L29: 25 | M29: 15 | N29: 10 | O29: 5 | P29: 0 | Q29: 0 | R29: 0 | S29: 0 | T29: 0 | U29: 0 | V29: 0
G30: =N(G29)+1 -> 2 | H30: =OFFSET($J$13,,$G30) -> 200 | K30: 0 | L30: 80 | M30: 50 | N30: 30 | O30: 20 | P30: 10 | Q30: 0 | R30: 0 | S30: 0 | T30: 0 | U30: 0 | V30: 0
G31: 3 | H31: 300 | K31: 0 | L31: 0 | M31: 120 | N31: 75 | O31: 45 | P31: 30 | Q31: 15 | R31: 0 | S31: 0 | T31: 0 | U31: 0 | V31: 0
G32: 4 | H32: 400 | K32: 0 | L32: 0 | M32: 0 | N32: 160 | O32: 100 | P32: 60 | Q32: 40 | R32: 20 | S32: 0 | T32: 0 | U32: 0 | V32: 0
G33: 5 | H33: 500 | K33: 0 | L33: 0 | M33: 0 | N33: 0 | O33: 200 | P33: 125 | Q33: 75 | R33: 50 | S33: 25 | T33: 0 | U33: 0 | V33: 0
G34: 6 | H34: 600 | K34: 0 | L34: 0 | M34: 0 | N34: 0 | O34: 0 | P34: 240 | Q34: 150 | R34: 90 | S34: 60 | T34: 30 | U34: 0 | V34: 0
G35: 7 | H35: 700 | K35: 0 | L35: 0 | M35: 0 | N35: 0 | O35: 0 | P35: 0 | Q35: 280 | R35: 175 | S35: 105 | T35: 70 | U35: 35 | V35: 0
G36: 8 | H36: 800 | K36: 0 | L36: 0 | M36: 0 | N36: 0 | O36: 0 | P36: 0 | Q36: 0 | R36: 320 | S36: 200 | T36: 120 | U36: 80 | V36: 40
G37: 9 | H37: 900 | K37: 0 | L37: 0 | M37: 0 | N37: 0 | O37: 0 | P37: 0 | Q37: 0 | R37: 0 | S37: 360 | T37: 225 | U37: 135 | V37: 90
G38: 10 | H38: 1000 | K38: 0 | L38: 0 | M38: 0 | N38: 0 | O38: 0 | P38: 0 | Q38: 0 | R38: 0 | S38: 0 | T38: 400 | U38: 250 | V38: 150
G39: =N(G38)+1 -> 11 | H39: 1100 | K39: 0 | L39: 0 | M39: 0 | N39: 0 | O39: 0 | P39: 0 | Q39: 0 | R39: 0 | S39: 0 | T39: 0 | U39: 440 | V39: 275
G40: 12 | H40: 1200 | K40: 0 | L40: 0 | M40: 0 | N40: 0 | O40: 0 | P40: 0 | Q40: 0 | R40: 0 | S40: 0 | T40: 0 | U40: 0 | V40: 480
G41: Cash Receipts | K41: =SUM(K29:K40) -> 40 | L41: =SUM(L29:L40) -> 105 | M41: 185 | N41: 275 | O41: 370 | P41: 465 | Q41: 560 | R41: 655 | S41: 750 | T41: 845 | U41: 940 | V41: 1035
E44: Reverse Ticker Method
F46: =F27 -> Month Number | K46: =K27 -> 1 | L46: 2 | M46: 3 | N46: 4 | O46: 5 | P46: 6 | Q46: 7 | R46: 8 | S46: 9 | T46: 10 | U46: 11 | V46: 12
G48: ="Reverse "&F15 -> Reverse Cash Receipt Profile | K48: =INDEX($K$15:$V$15,MAX($K$46:$V$46)-K$46+1) -> 0 | L48: =INDEX($K$15:$V$15,MAX($K$46:$V$46)-L$46+1) -> 0 | M48: 0 | N48: 0 | O48: 0 | P48: 0 | Q48: 0 | R48: 0.05 | S48: 0.1 | T48: 0.15 | U48: 0.25 | V48: 0.4
G49: =F13 -> Forecast Sales Revenue | K49: =K13 -> 100 | L49: =L13 -> 200 | M49: 300 | N49: 400 | O49: 500 | P49: 600 | Q49: 700 | R49: 800 | S49: 900 | T49: 1000 | U49: 1100 | V49: 1200
G51: =G41 -> Cash Receipts | K51: =SUMPRODUCT(OFFSET($V$48,,,1,-K$46)*OFFSET($K$49,,,1,K$46)) -> 40 | L51: =SUMPRODUCT(OFFSET($V$48,,,1,-L$46)*OFFSET($K$49,,,1,L$46)) -> 105 | M51: 185 | N51: 275 | O51: 370 | P51: 465 | Q51: 560 | R51: 655 | S51: 750 | T51: 845 | U51: 940 | V51: 1035
D54: Control Account
F56: =F46 -> Month Number | K56: =K46 -> 1 | L56: =L46 -> 2 | M56: 3 | N56: 4 | O56: 5 | P56: 6 | Q56: 7 | R56: 8 | S56: 9 | T56: 10 | U56: 11 | V56: 12
G58: Opening Debtors | K58: =IF(K$56=1,,J62) -> 0 | L58: =IF(L$56=1,,K62) -> 60 | M58: 155 | N58: 270 | O58: 395 | P58: 525 | Q58: 655 | R58: 785 | S58: 915 | T58: 1045 | U58: 1175 | V58: 1305 | X58: ='Simple Example'!J25 -> Prior BS
G59: Sales in Period | K59: =K13 -> 100 | L59: =L13 -> 200 | M59: 300 | N59: 400 | O59: 500 | P59: 600 | Q59: 700 | R59: 800 | S59: 900 | T59: 1000 | U59: 1100 | V59: 1200 | X59: ='Simple Example'!J26 -> IS
G60: Bad Debts Written Off | K60: =-K20 -> 0 | L60: =-L20 -> 0 | M60: 0 | N60: 0 | O60: 0 | P60: -5 | Q60: -10 | R60: -15 | S60: -20 | T60: -25 | U60: -30 | V60: -35 | X60: ='Simple Example'!J26 -> IS
G61: =G51 -> Cash Receipts | K61: =-K51 -> -40 | L61: =-L51 -> -105 | M61: -185 | N61: -275 | O61: -370 | P61: -465 | Q61: -560 | R61: -655 | S61: -750 | T61: -845 | U61: -940 | V61: -1035 | X61: ='Simple Example'!J27 -> CFS
G62: Closing Debtors | K62: =SUM(K58:K61) -> 60 | L62: =SUM(L58:L61) -> 155 | M62: 270 | N62: 395 | O62: 525 | P62: 655 | Q62: 785 | R62: 915 | S62: 1045 | T62: 1175 | U62: 1305 | V62: 1435 | X62: ='Simple Example'!J28 -> Current BS

Sheet Error Checks
A1: =IF(ISERROR(RIGHT(CELL("filename",A1),LEN(CELL("filename",A1))-FIND("]",CELL("filename",A1)))), "", RIGHT(CELL("filename",A1),LEN(CELL("filename",A1))-FIND("]",CELL("filename",A1)))) -> Error Checks
A2: =Model_Name -> Working Capital Adjustment.xlsm
A3: Navigator
B4: Error Checks: | F4: =Overall_Error_Check -> 0
B6: =MAX($B$5:$B5)+1 -> 1 | C6: Error Checks
C8: Summary of Errors
D10: Assumptions
E12: Example
E17: =C8 -> Summary of Errors | I17: =MIN(1,SUM(I11:I15)) -> 0
